bitfinex/quotes_SOLUSD_20250830
["timestamp","ask_amount","ask_price","bid_price","bid_amount"]
[1756567133786,30.89602088,200.66,200.61,0.71]
[1756567133973,30.89602088,200.66,200.61,5.69468202]
[1756567134376,30.89602088,200.66,200.61,4.98468202]
[1756567134573,30.19602088,200.66,200.62,0.71]
[1756567134786,26.0,200.66,200.63,0.71]
[1756567135876,26.0,200.66,200.62,4.98447102]
[1756567136076,26.0,200.66,200.63,0.71]
[1756567136901,26.0,200.66,200.62,4.98447102]
[1756567137104,26.7,200.66,200.62,38.74]
[1756567138192,26.7,200.66,200.62,43.72452402]
[1756567138709,26.7,200.66,200.62,44.43452402]
[1756567140617,26.0,200.64,200.59,0.03]
[1756567140787,4.19602088,200.62,200.59,0.03]
[1756567141189,4.89602088,200.62,200.59,0.03]
[1756567141385,4.19602088,200.63,200.59,0.03]
[1756567141696,0.7,200.61,200.59,0.03]
[1756567142019,4.19602088,200.63,200.59,0.03]
[1756567142386,9.18038858,200.63,200.59,0.03]
[1756567143507,4.19602088,200.63,200.59,0.03]
[1756567144083,0.7,200.62,200.59,0.03]
[1756567144308,30.19602088,200.64,200.59,0.7]
[1756567144612,26.0,200.64,200.6,0.67]
[1756567144901,26.7,200.64,200.6,0.67]
[1756567145078,0.7,200.63,200.6,0.67]
[1756567145498,0.7,200.63,200.59,0.03]
[1756567145691,0.7,200.63,200.59,0.7]
[1756567146811,26.0,200.64,200.59,0.03]
[1756567147003,0.7,200.63,200.59,0.03]
[1756567147203,0.7,200.63,200.59,0.7]
[1756567149110,0.7,200.62,200.59,0.7]
[1756567149487,26.7,200.64,200.59,0.7]
[1756567149690,0.7,200.63,200.59,0.7]
[1756567149888,26.0,200.64,200.6,0.67]
[1756567150113,26.7,200.64,200.6,0.67]
[1756567150618,0.7,200.63,200.6,0.67]
[1756567151207,26.0,200.64,200.59,5.01528746]
[1756567151392,0.7,200.63,200.59,5.68528746]
[1756567151589,35.23958975,200.66,200.59,5.01528746]
[1756567151796,0.7,200.65,200.59,5.68528746]
[1756567152819,0.7,200.65,200.59,5.01528746]
[1756567153108,0.7,200.65,200.6,0.67]
[1756567153412,0.7,200.64,200.6,0.67]
[1756567154187,35.23958975,200.66,200.61,0.67]
[1756567154393,0.7,200.65,200.61,0.67]
[1756567155113,0.7,200.64,200.59,5.01528746]
[1756567155319,0.7,200.64,200.6,0.67]
[1756567155615,30.95602088,200.66,200.61,0.67]
[1756567155808,0.7,200.65,200.61,0.67]
[1756567156202,30.25602088,200.66,200.61,0.67]
[1756567156404,0.7,200.65,200.61,0.67]
[1756567156604,0.7,200.64,200.61,0.67]
[1756567157823,26.06,200.66,200.61,0.67]
[1756567158199,26.76,200.66,200.62,0.67]
[1756567158406,0.7,200.65,200.61,0.67]
[1756567159314,0.7,200.65,200.62,0.67]
[1756567160416,0.7,200.65,200.6,0.67]
[1756567160621,0.7,200.65,200.61,0.67]
[1756567164126,0.7,200.65,200.6,4.98491554]
[1756567164426,0.7,200.64,200.6,5.65491554]
[1756567164920,0.7,200.64,200.61,0.67]
[1756567165622,31.044916,200.66,200.59,0.03]
[1756567165623,36.02851269,200.66,200.59,0.03]
[1756567165925,30.19602088,200.62,200.61,0.03]
[1756567166331,26.7,200.62,200.61,0.03]
[1756567166511,32.89946379,200.62,200.61,0.03]
[1756567166715,28.699151,200.62,200.61,0.03]
[1756567168829,33.6836989,200.62,200.61,0.03]
[1756567169208,37.88304502,200.62,200.61,0.03]
[1756567170321,33.6836989,200.62,200.61,0.03]
[1756567170846,39.26335954,200.62,200.61,0.03]
[1756567171148,33.6836989,200.62,200.61,0.03]
[1756567173135,72.3836989,200.62,200.61,0.03]
[1756567178436,1.999151,200.62,200.61,0.03]
[1756567178813,6.9836989,200.62,200.61,0.03]
[1756567179051,32.9836989,200.62,200.61,0.03]
[1756567183357,37.17846307,200.62,200.61,0.03]
[1756567184964,37.88846307,200.62,200.61,0.03]
[1756567185142,37.94846307,200.62,200.61,0.03]
[1756567185957,11.94846307,200.62,200.61,0.03]
[1756567186163,46.4536989,200.62,200.61,0.03]
[1756567189356,60.04929291,200.62,200.61,0.03]
[1756567196449,59.33929291,200.62,200.61,0.03]
[1756567196649,60.04929291,200.62,200.61,0.03]
[1756567199879,21.34929291,200.62,200.61,0.03]
[1756567200170,60.04929291,200.62,200.61,0.03]
[1756567201962,21.34929291,200.62,200.61,0.03]
[1756567202193,7.0436989,200.62,200.61,0.74]
[1756567202467,2.059151,200.62,200.61,0.74]
[1756567203269,32.25570218,200.62,200.61,0.74]
[1756567203763,37.24025008,200.62,200.61,0.74]
[1756567203966,33.0436989,200.62,200.61,0.74]
[1756567204170,7.0436989,200.62,200.61,0.03]
[1756567204552,45.7236989,200.62,200.61,0.03]
[1756567204964,45.7236989,200.62,200.61,0.74]
[1756567205170,7.0436989,200.62,200.61,0.74]
[1756567205371,7.0436989,200.62,200.61,0.03]
[1756567205553,7.0436989,200.62,200.61,0.74]
[1756567205870,37.24291151,200.62,200.61,0.74]
[1756567206051,11.24291151,200.62,200.61,0.74]
[1756567206565,37.24291151,200.62,200.61,0.03]
[1756567206763,7.0436989,200.62,200.61,0.03]
[1756567207359,45.7236989,200.62,200.61,0.03]
[1756567207964,7.0436989,200.62,200.61,0.74]
[1756567208267,32.26201476,200.62,200.61,0.74]
[1756567210250,28.059151,200.62,200.61,0.74]
[1756567210453,32.7653007,200.62,200.61,0.74]
[1756567210961,30.7661497,200.62,200.61,0.74]
[1756567212180,30.7661497,200.62,200.61,0.03]
[1756567212382,30.7661497,200.62,200.61,0.74]
[1756567213052,10.4506976,200.62,200.61,0.03]
[1756567213253,49.1306976,200.62,200.61,0.03]
[1756567213454,50.4298476,200.62,200.61,0.03]
[1756567213865,51.1298476,200.62,200.61,0.03]
[1756567215684,2.05915,200.62,200.61,0.03]
[1756567215884,2.05915,200.62,200.61,0.74]
[1756567215885,0.06,200.62,200.61,0.74]
[1756567216063,30.7661497,200.62,200.61,0.74]
[1756567216270,4.7661497,200.62,200.61,0.74]
[1756567216581,36.4506976,200.62,200.61,0.03]
[1756567217685,35.7506976,200.62,200.61,0.03]
[1756567220171,30.7661497,200.62,200.61,0.03]
[1756567220364,30.7661497,200.62,200.61,0.74]
[1756567223881,30.7661497,200.62,200.61,0.03]
[1756567224198,35.7506976,200.62,200.61,0.03]
[1756567224389,30.7661497,200.62,200.61,0.03]
[1756567224895,34.97133395,200.62,200.61,0.03]
[1756567231289,33.27728659,200.62,200.61,0.03]
[1756567235480,30.26518425,200.62,200.61,0.03]
[1756567235994,33.27728659,200.62,200.61,0.03]
[1756567236512,29.07210234,200.62,200.61,0.03]
[1756567236690,33.27728659,200.62,200.61,0.03]
[1756567238176,33.27728659,200.62,200.61,0.75]
[1756567238177,4.26518425,200.62,200.61,0.75]
[1756567238385,0.06,200.62,200.61,5.73479637]
[1756567240986,0.06,200.62,200.61,22.34249272]
[1756567241394,0.06,200.62,200.61,28.07728972]
[1756567243306,0.06,200.62,200.61,29.76712793]
[1756567246927,0.06,200.62,200.61,5.764797]
[1756567247104,4.76194055,200.62,200.61,0.03]
[1756567247712,0.06,200.62,200.61,0.03]
[1756567248013,0.06,200.62,200.61,10.43673692]
[1756567250811,0.06,200.62,200.61,49.07673692]
[1756567253407,0.06,200.62,200.61,106.41673691]
[1756567253607,0.06,200.62,200.61,101.71479636]
[1756567256617,0.06,200.62,200.61,106.41673691]
[1756567258640,0.06,200.62,200.61,49.07673692]
[1756567262024,0.06,200.65,200.62,13.59559401]
[1756567262229,0.06,200.65,200.64,18.29753456]
[1756567262607,0.06,200.65,200.64,57.65753456]
[1756567262818,0.06,200.65,200.64,59.65538656]
[1756567263417,0.06,200.65,200.64,25.99943759]
[1756567263620,0.06,200.65,200.64,50.30384358]
[1756567263826,0.06,200.65,200.64,45.60190303]
[1756567264038,0.06,200.65,200.64,46.32190303]
[1756567264408,0.06,200.65,200.64,45.60190303]
[1756567264607,0.06,200.65,200.64,46.32190303]
[1756567264824,0.06,200.65,200.64,51.02384358]
[1756567267732,0.06,200.65,200.64,12.40384358]
[1756567267953,0.06,200.65,200.64,50.30384358]
[1756567268241,0.06,200.65,200.64,107.64384357]
[1756567269038,4.76194055,200.65,200.61,57.36999999]
[1756567269218,5.36194055,200.64,200.62,38.62]
[1756567269414,0.06,200.65,200.62,39.34]
[1756567269617,0.72,200.65,200.62,39.34]
[1756567269958,0.72,200.65,200.62,44.3243684]
[1756567270233,0.72,200.65,200.62,43.6043684]
[1756567270436,0.72,200.65,200.62,44.3243684]
[1756567270623,0.06,200.65,200.62,44.3243684]
[1756567271221,0.06,200.65,200.63,5.42194055]
[1756567271419,0.06,200.65,200.64,43.32194055]
[1756567271645,0.06,200.65,200.64,44.04194055]
[1756567273440,0.06,200.65,200.64,49.02599158]
[1756567274154,0.72,200.65,200.64,43.60405103]
[1756567274853,0.06,200.65,200.64,44.32405103]
[1756567275425,0.06,200.65,200.64,43.60405103]
[1756567276251,0.06,200.65,200.64,4.98405103]
[1756567276549,0.06,200.65,200.63,4.98429945]
[1756567276550,5.42194055,200.65,200.63,4.98429945]
[1756567276754,5.42194055,200.65,200.61,0.03]
[1756567276755,4.70194055,200.64,200.61,0.03]
[1756567277044,26.06,200.65,200.62,38.62]
[1756567277346,0.66,200.64,200.62,38.62]
[1756567277740,0.66,200.63,200.61,0.03]
[1756567277950,0.66,200.63,200.62,38.62]
[1756567278130,5.36194055,200.63,200.62,38.62]
[1756567278554,10.34629645,200.63,200.61,0.03]
[1756567278751,5.6443559,200.63,200.61,0.03]
[1756567278949,4.70194055,200.62,200.61,0.03]
[1756567279332,5.36194055,200.62,200.61,0.03]
[1756567279727,36.34648845,200.62,200.61,0.03]
[1756567279934,19.24037783,200.62,200.61,0.03]
[1756567280155,14.53843728,200.62,200.61,0.03]
[1756567280457,16.53778728,200.62,200.61,0.03]
[1756567280652,7.36129055,200.62,200.61,0.03]
[1756567280961,5.36194055,200.62,200.61,0.03]
[1756567281157,0.66,200.62,200.61,0.03]
[1756567281365,5.36194055,200.62,200.61,0.03]
[1756567283861,0.66,200.62,200.61,0.03]
[1756567284160,5.36194055,200.62,200.61,0.03]
[1756567284838,0.66,200.62,200.61,0.03]
[1756567285040,5.36194055,200.62,200.61,0.03]
[1756567286575,5.42194055,200.62,200.61,0.03]
[1756567286867,4.76194055,200.62,200.61,0.03]
[1756567287439,0.06,200.62,200.61,0.03]
[1756567287740,0.06,200.62,200.61,0.75]
[1756567287936,0.06,200.62,200.61,0.03]
[1756567289668,0.06,200.62,200.61,0.75]
[1756567290854,0.06,200.62,200.61,5.73479637]
[1756567291253,0.06,200.62,200.61,5.01479637]
[1756567292135,0.06,200.62,200.61,5.71479637]
[1756567293257,0.06,200.62,200.61,49.03673692]
[1756567293460,0.06,200.62,200.61,120.03233093]
[1756567293650,0.06,200.62,200.61,122.03048293]
[1756567296363,0.06,200.62,200.61,244.03048293]
[1756567296663,0.06,200.62,200.61,186.63048293]
[1756567297445,0.06,200.62,200.61,64.63048293]
[1756567302871,1e-08,200.62,200.61,65.12896256]
[1756567303074,1e-08,200.65,200.62,13.59559401]
[1756567303260,1e-08,200.65,200.64,4.70194055]
[1756567303653,1e-08,200.65,200.64,7.39959355]
[1756567304277,1e-08,200.67,200.65,13.59559401]
[1756567304467,1e-08,200.67,200.66,57.41588998]
[1756567304784,1e-08,200.67,200.66,58.11588998]
[1756567304992,1e-08,200.67,200.66,65.09679825]
[1756567306180,1e-08,200.68,200.66,65.09679825]
[1756567306366,1e-08,200.68,200.67,5.40194055]
[1756567306747,1e-08,200.68,200.67,7.39929455]
[1756567306953,1e-08,200.68,200.67,51.97819448]
[1756567307154,1e-08,200.69,200.67,51.97819448]
[1756567307356,1e-08,200.69,200.68,44.50024631]
[1756567307868,1e-08,200.69,200.68,46.49749931]
[1756567308069,1e-08,200.69,200.68,51.48055691]
[1756567308269,1e-08,200.69,200.68,46.77861636]
[1756567308571,1e-08,200.69,200.68,51.48055691]
[1756567311770,1e-08,200.69,200.68,50.98225115]
[1756567311956,0.06,200.72,200.7,4.70194055]
[1756567312151,0.06,200.72,200.7,100.70194055]
[1756567312357,0.06,200.72,200.7,101.40194055]
[1756567312572,0.06,200.72,200.7,108.1009361]
[1756567312769,0.06,200.72,200.71,18.29753456]
[1756567312966,0.06,200.72,200.71,18.99753456]
[1756567313488,0.72,200.79,200.74,13.59559401]
[1756567313695,0.72,200.79,200.78,4.98057575]
[1756567313988,26.0,200.84,200.78,48.2825163]
[1756567314160,1.996755,200.88,200.78,4.98057575]
[1756567314361,4.70194055,200.82,200.79,38.6]
[1756567314582,0.72,200.81,200.79,38.6]
[1756567314883,0.72,200.8,200.78,4.98057575]
[1756567315063,1.996755,200.88,200.77,62.38079401]
[1756567315064,0.72,200.79,200.77,62.38079401]
[1756567315267,0.72,200.78,200.77,62.38079401]
[1756567315484,0.72,200.78,200.77,67.08273401]
[1756567315660,0.72,200.78,200.77,105.68273401]
[1756567315863,0.72,200.83,200.78,13.59559401]
[1756567316070,0.72,200.85,200.81,4.70194055]
[1756567316271,0.72,200.84,200.82,43.30194055]
[1756567316470,0.72,200.86,200.83,43.30194055]
[1756567316769,0.72,200.85,200.83,48.00388155]
[1756567316972,0.72,200.85,200.83,43.301941]
[1756567317175,26.0,200.92,200.83,43.301941]
[1756567317377,4.70194055,200.88,200.84,4.70194055]
[1756567317559,0.72,200.87,200.85,38.6]
[1756567317760,0.72,200.86,200.85,43.57883993]
[1756567318278,0.72,200.86,200.85,38.6]
[1756567319579,0.72,200.86,200.85,43.57883993]
[1756567320978,0.72,200.86,200.85,38.6]
[1756567321161,0.72,200.86,200.85,38.58]
[1756567321575,0.72,200.86,200.85,95.98]
[1756567322085,0.06,200.87,200.85,106.38078048]
[1756567322266,0.06,200.87,200.86,5.42194055]
[1756567322655,0.06,200.87,200.86,43.941941]
[1756567322894,0.06,200.87,200.86,48.64388155]
[1756567323484,0.06,200.87,200.86,53.6224736]
[1756567323787,0.06,200.87,200.86,10.34053305]
[1756567323975,0.06,200.87,200.86,48.92053305]
[1756567324185,0.06,200.87,200.86,53.6224736]
[1756567324371,0.72,200.87,200.86,43.941941]
[1756567324568,0.72,200.87,200.86,38.58]
[1756567325280,0.06,200.87,200.86,38.58]
[1756567325788,0.72,200.87,200.86,38.58]
[1756567326573,0.06,200.87,200.86,48.9805326]
[1756567327074,0.06,200.87,200.86,76.17172061]
[1756567327900,1e-08,200.87,200.86,76.66957981]
[1756567328302,1e-08,200.89,200.88,26.0]
[1756567328473,1e-08,200.89,200.88,83.35534419]
[1756567328667,1e-08,200.89,200.88,84.07534419]
[1756567329169,0.66,201.0,200.89,13.59559401]
[1756567329370,0.66,200.99,200.93,13.59559401]
[1756567329566,0.66,200.99,200.96,4.70194055]
[1756567329766,0.66,200.99,200.97,38.58]
[1756567329996,0.66,200.98,200.97,38.58]
[1756567330383,0.66,200.98,200.94,5.361941]
[1756567330578,0.66,200.97,200.95,38.58]
[1756567330773,0.66,200.97,200.96,38.58]
[1756567330969,0.66,201.0,200.96,38.58]
[1756567331167,5.36194055,200.99,200.96,38.58]
[1756567331383,4.70194055,201.01,200.96,43.28194055]
[1756567331694,0.66,201.01,200.98,4.70194055]
[1756567331895,0.66,201.01,200.99,38.58]
[1756567332192,26.66,201.03,200.99,43.28194055]
[1756567332391,0.66,201.02,200.99,38.58]
[1756567332600,0.66,201.01,200.99,38.58]
[1756567332976,26.0,201.07,200.99,43.28194055]
[1756567333198,5.07338785,201.08,201.0,0.72]
[1756567333489,4.70194055,201.02,201.01,38.58]
[1756567333704,5.36194055,201.02,200.98,19.66117655]
[1756567333873,5.36194055,201.02,200.99,38.58]
[1756567334074,0.66,201.02,200.99,38.58]
[1756567334277,5.36194055,201.02,200.99,38.58]
[1756567334600,0.66,201.02,200.99,38.58]
[1756567335392,5.36194055,201.02,200.99,38.58]
[1756567335595,5.36194055,201.02,200.99,53.539236]
[1756567336180,5.36194055,201.02,200.99,38.58]
[1756567336374,5.36194055,201.02,200.99,53.539236]
[1756567336580,4.70194055,201.0,200.93,13.59559401]
[1756567336888,4.70194055,200.97,200.94,38.6]
[1756567337090,4.70194055,200.98,200.94,38.6]
[1756567337280,0.66,201.0,200.94,44.02194055]
[1756567337780,4.70194055,200.98,200.94,44.02194055]
[1756567337991,0.66,200.97,200.93,18.29753456]
[1756567338189,0.66,200.97,200.94,38.58]
[1756567338407,4.70194055,200.98,200.94,39.3]
[1756567338586,0.66,200.99,200.94,39.3]
[1756567338904,5.36194055,200.99,200.94,43.28194055]
[1756567339074,5.36194055,200.99,200.94,39.3]
[1756567339278,4.70194055,200.97,200.94,38.58]
[1756567339585,4.70194055,200.97,200.95,38.58]
[1756567340002,5.36194055,200.98,200.95,38.58]
[1756567340379,0.66,200.98,200.95,38.58]
[1756567341003,5.36194055,200.98,200.95,38.58]
[1756567341207,4.70194055,200.97,200.96,38.56]
[1756567341704,5.36194055,200.97,200.89,13.59559401]
[1756567341915,4.70194055,200.91,200.9,38.56]
[1756567342197,4.70194055,200.92,200.9,38.56]
[1756567342606,0.66,200.95,200.9,38.56]
[1756567342607,4.70194055,200.94,200.9,39.28]
[1756567342802,5.36194055,200.94,200.9,39.28]
[1756567343177,4.70194055,200.93,200.9,44.25754062]
[1756567343399,4.70194055,200.93,200.9,38.56]
[1756567343703,4.97612691,200.96,200.9,38.56]
[1756567343908,0.66,200.96,200.9,38.56]
[1756567344094,0.66,200.99,200.92,23.27463987]
[1756567344400,4.70194055,200.98,200.93,44.02194055]
[1756567344612,4.70194055,200.97,200.93,39.32]
[1756567344909,4.70194055,200.96,200.93,38.6]
[1756567345206,26.0,200.99,200.94,0.72]
[1756567345389,4.70194055,200.97,200.94,0.72]
[1756567345701,4.70194055,200.97,200.93,43.5767515]
[1756567345702,4.70194055,200.97,200.95,38.62]
[1756567345883,5.36194055,200.96,200.95,38.62]
[1756567346091,4.70194055,200.96,200.95,38.62]
[1756567348105,4.70194055,200.96,200.93,4.97680305]
[1756567348276,4.70194055,200.96,200.95,38.6]
[1756567348477,4.70194055,200.97,200.95,38.6]
[1756567348680,4.70194055,200.97,200.96,38.6]
[1756567349280,4.70194055,200.98,200.96,39.32]
[1756567349491,4.70194055,200.99,200.96,39.32]
[1756567349703,0.06,201.05,200.96,43.57610682]
[1756567349880,0.72,201.02,200.97,14.31559401]
[1756567350089,4.70194055,200.98,200.94,14.959236]
[1756567350305,4.70194055,200.96,200.95,38.62]
[1756567350501,4.70194055,200.96,200.95,38.66]
[1756567350810,26.72,201.02,200.95,44.35634989]
[1756567351015,4.70194055,201.0,200.96,0.72]
[1756567351312,4.70194055,200.99,200.96,0.72]
[1756567351888,4.70194055,200.98,200.96,0.72]
[1756567353008,4.70194055,200.98,200.94,4.97655813]
[1756567353192,5.36194055,200.97,200.95,38.68]
[1756567353385,5.36194055,200.97,200.96,38.68]
[1756567353801,4.70194055,200.97,200.96,38.68]
[1756567354600,4.70194055,200.97,200.9,20.60895114]
[1756567354601,5.36194055,200.97,200.9,20.60895114]
[1756567354798,4.70194055,200.93,200.91,38.68]
[1756567355223,4.97598247,200.97,200.91,38.68]
[1756567355224,0.66,200.95,200.91,38.68]
[1756567355418,4.70194055,200.93,200.91,38.68]
[1756567355632,0.66,200.95,200.91,38.68]
[1756567355927,0.66,200.94,200.91,38.68]
[1756567356133,4.70194055,200.93,200.91,38.68]
[1756567356518,4.97598247,200.97,200.91,38.68]
[1756567356716,4.70194055,200.94,200.91,38.68]
[1756567357404,4.70194055,200.94,200.91,39.35]
[1756567359303,4.70194055,200.94,200.91,38.68]
[1756567359505,4.70194055,200.94,200.91,39.35]
[1756567359714,0.66,200.93,200.92,38.66]
[1756567359902,5.36194055,200.93,200.89,0.03]
[1756567360099,30.70194055,200.9,200.89,0.03]
[1756567360399,35.4038811,200.9,200.89,0.03]
[1756567360603,36.0638811,200.9,200.89,0.03]
[1756567360803,41.04148189,200.9,200.89,0.03]
[1756567361215,44.95212532,200.9,200.89,0.03]
[1756567361416,35.54824422,200.9,200.89,0.03]
[1756567361623,41.04148189,200.9,200.89,0.03]
[1756567362710,30.79450906,200.92,200.89,0.03]
[1756567362906,31.36194055,200.9,200.89,0.03]
[1756567366018,4.13450906,200.95,200.89,5.40194055]
[1756567366324,2.60377013,200.97,200.91,4.70194055]
[1756567366325,5.36194055,200.96,200.91,4.70194055]
[1756567366544,9.11041055,200.97,200.89,0.03]
[1756567366545,4.70194055,200.93,200.89,0.03]
[1756567366906,4.70194055,200.93,200.9,0.67]
[1756567367238,0.66,200.95,200.9,5.37194055]
[1756567367443,5.36194055,200.95,200.9,5.37194055]
[1756567368009,4.70194055,200.95,200.91,0.67]
[1756567368519,26.0,200.96,200.9,9.67948466]
[1756567368520,26.0,200.96,200.92,5.37194055]
[1756567368714,4.13450906,200.99,200.93,5.37194055]
[1756567368715,30.70194055,200.98,200.93,5.37194055]
[1756567368920,30.70194055,200.98,200.94,0.67]
[1756567369119,30.70194055,200.98,200.93,4.70194055]
[1756567369326,30.70194055,200.98,200.94,0.67]
[1756567369639,4.70194055,200.96,200.91,5.37194055]
[1756567369841,30.70194055,200.97,200.92,5.37194055]
[1756567370137,30.70194055,200.97,200.93,0.67]
[1756567370339,30.70194055,200.97,200.93,10.34873411]
[1756567370552,4.70194055,200.98,200.94,0.67]
[1756567370711,0.06,201.02,200.97,4.70194055]
[1756567370911,5.36194055,201.01,200.96,43.84194055]
[1756567371214,4.70194055,201.0,200.97,0.67]
[1756567371604,4.70194055,201.0,200.96,39.14]
[1756567371810,4.70194055,201.0,200.96,39.81]
[1756567372245,0.06,201.02,200.97,5.37194055]
[1756567372416,5.42194055,201.02,200.97,0.67]
[1756567372618,4.70194055,201.01,200.98,0.67]
[1756567373034,4.70194055,201.0,200.96,39.14]
[1756567373345,4.70194055,201.0,200.97,0.67]
[1756567373515,0.66,201.01,200.97,0.67]
[1756567373714,4.70194055,201.0,200.97,0.67]
[1756567373915,5.36194055,201.01,200.97,0.67]
[1756567374114,0.66,201.01,200.97,0.67]
[1756567374335,5.36194055,201.01,200.97,10.34767925]
[1756567374614,4.70194055,201.01,200.97,10.34767925]
[1756567374816,0.06,201.02,200.97,10.34767925]
[1756567374817,4.76194055,201.02,200.98,0.67]
[1756567375532,4.76194055,201.02,200.99,0.67]
[1756567376242,0.06,201.02,201.01,4.70194055]
[1756567376545,0.06,201.02,201.0,4.70194055]
[1756567376736,0.06,201.02,201.01,0.67]
[1756567376944,0.06,201.02,201.01,5.37194055]
[1756567377237,0.06,201.02,201.01,10.34681742]
[1756567377845,0.06,201.05,201.02,13.59559401]
[1756567378147,0.06,201.05,201.04,18.29753456]
[1756567378516,0.06,201.05,201.04,18.96753456]
[1756567378940,0.06,201.05,201.04,23.94166906]
[1756567379925,0.06,201.05,201.04,63.20166906]
[1756567380125,0.06,201.05,201.04,58.49972851]
[1756567380320,0.06,201.05,201.03,1.993869]
[1756567380526,0.72,201.05,201.01,4.97485725]
[1756567380734,4.76194055,201.05,201.02,39.32]
[1756567381047,0.06,201.05,201.02,39.32]
[1756567381341,0.06,201.05,201.02,48.99647628]
[1756567381538,0.06,201.05,201.02,44.29453573]
[1756567381736,0.06,201.05,201.02,48.99647628]
[1756567381937,0.06,201.05,201.03,0.72]
[1756567382143,0.06,201.05,201.02,49.71647628]
[1756567382645,5.45194055,201.05,201.02,39.32]
[1756567383429,0.06,201.05,201.02,40.04]
[1756567383625,4.70194055,201.03,200.99,5.451941]
[1756567383823,0.69,201.02,200.99,96.74]
[1756567385021,4.70194055,201.03,200.99,96.74]
[1756567385235,5.39194055,201.03,200.99,96.74]
[1756567385434,4.70194055,201.03,200.99,101.71533082]
[1756567385633,4.70194055,201.04,201.0,0.72]
[1756567386346,4.70194055,201.02,200.99,39.34]
[1756567386550,0.69,201.02,200.99,39.34]
[1756567386851,4.70194055,201.01,200.99,39.34]
[1756567387149,4.70194055,201.0,200.99,39.34]
[1756567387349,0.69,201.02,200.99,39.34]
[1756567387528,4.70194055,201.0,200.99,39.34]
[1756567388250,5.39194055,201.0,200.96,57.4]
[1756567388549,4.70194055,200.99,200.96,96.74]
[1756567388734,26.06,201.05,200.96,101.71607281]
[1756567388932,4.70194055,201.01,200.97,0.72]
[1756567389330,4.70194055,201.0,200.97,0.72]
[1756567389549,0.69,201.01,200.97,0.72]
[1756567389727,0.06,201.05,201.0,4.70194055]
[1756567389923,0.06,201.05,201.01,44.74194055]
[1756567390344,0.06,201.05,201.02,0.72]
[1756567390535,0.06,201.05,201.02,5.42194055]
[1756567390736,0.06,201.05,201.03,0.72]
[1756567391456,0.06,201.05,201.03,9.67612494]
[1756567391663,0.06,201.05,201.04,0.72]
[1756567392458,0.06,201.05,201.01,4.70194055]
[1756567392641,0.06,201.05,201.01,9.67658328]
[1756567392848,0.06,201.05,201.01,10.39658328]
[1756567393064,0.06,201.05,201.01,9.67658328]
[1756567393241,0.06,201.05,201.01,10.39658328]
[1756567393741,0.06,201.05,201.01,5.69464273]
[1756567393949,4.76194055,201.05,201.01,5.69464273]
[1756567394654,5.45194055,201.05,201.01,5.69464273]
[1756567394851,5.39194055,201.04,201.0,44.31508741]
[1756567395070,4.70194055,201.03,201.0,44.31508741]
[1756567396370,4.70194055,201.03,201.0,45.03508741]
[1756567397050,0.06,201.05,201.0,45.03508741]
[1756567397251,4.70194055,201.03,201.0,45.03508741]
[1756567398738,0.75,201.05,201.0,45.03508741]
[1756567398943,4.70194055,201.03,201.0,45.03508741]
[1756567399671,0.75,201.05,200.98,62.10194055]
[1756567399672,4.70194055,201.01,200.99,39.3]
[1756567399862,4.70194055,201.0,200.99,39.3]